[Event "ESTCC-50 2025"]
[Site "Swidnica"]
[Date "2025.04.10"]
[Round "6.1"]
[White "Laszewicz, Pawel"]
[Black "Rogowski, Jaroslaw"]
[Result "0-1"]
[Annotator "ChessBase"]
[ECO "B02"]
[WhiteElo "2011"]
[BlackElo "2050"]
[PlyCount "66"]
[EventDate "2025.04.05"]
[EventType "team-tourn"]
[EventCountry "POL"]
[SourceTitle "playchess.com"]
[Source "ChessBase"]
[SourceQuality "1"]
[WhiteTeam "Poland"]
[BlackTeam "Poland"]
[WhiteTeamCountry "POL"]
[BlackTeamCountry "POL"]
[TimeControl "40/5400+30:1800+30"]

1. e4 {[%emt 0:00:07]} Nf6 {[%emt 0:00:57]} 2. Nc3 {[%emt 0:00:13]} d5 {[%emt 0:00:12]} 3. exd5 {[%emt 0:00:19]} Nxd5 {[%emt 0:00:14]} 4. Bc4 {[%emt 0:00:06]} Nb6 {[%emt 0:00:33]} 5. Bb3 {[%emt 0:01:15]} Nc6 {[%emt 0:02:43]} 6. Nf3 {[%emt 0:01:28]} Bf5 {[%emt 0:03:24]} 7. a3 {[%emt 0:05:53]} e6 {[%emt 0:02:07]} 8. h3 {[%emt 0:00:54]} Be7 {[%emt 0:08:22]} 9. d3 {[%emt 0:03:44]} h5 {[%emt 0:15:17]} 10. Be3 {[%emt 0:03:21]} Nd5 {[%emt 0:10:09]} 11. Ba4 {[%emt 0:29:13]} Nxe3 {[%emt 0:11:35]} 12. fxe3 {[%emt 0:01:24]} Qd6 {[%emt 0:00:57]} 13. Qe2 {[%emt 0:00:30]} O-O-O {[%emt 0:01:35]} 14. O-O-O Bf6 15. d4 {[%emt 0:22:20]} Bg6 {[%emt 0:16:19]} 16. Rd2 {[%emt 0:09:53]} Nb8 {[%emt 0:04:27]} 17. e4 {[%emt 0:05:05]} Qb6 {[%emt 0:02:20]} 18. Rhd1 {[%emt 0:02:10]} c6 {[%emt 0:01:39]} 19. Kb1 {[%emt 0:02:22]} h4 {[%emt 0:01:12]} 20. Bb3 {[%emt 0:01:25]} Na6 {[%emt 0:04:59]} 21. Ka2 {[%emt 0:02:10]} Qa5 {[%emt 0:03:47]} 22. Bc4 {[%emt 0:01:31]} b5 {[%emt 0:01:44]} 23. Nxb5 {[%emt 0:00:32]} cxb5 {[%emt 0:00:57]} 24. Bxb5 {[%emt 0:00:02]} Nc7 {[%emt 0:00:23]} 25. Bc4 {[%emt 0:00:12]} Rd7 {[%emt 0:02:34]} 26. b4 {[%emt 0:01:06]} Qb6 {[%emt 0:00:14]} 27. c3 {[%emt 0:00:38]} Rh5 {[%emt 0:01:15]} 28. Kb3 {[%emt 0:02:08]} a5 {[%emt 0:00:51]} 29. Ne5 {[%emt 0:01:39]} Bxe5 {[%emt 0:00:45]} 30. dxe5 {[%emt 0:00:02]} Rxd2 {[%emt 0:00:49]} 31. Qxd2 {[%emt 0:00:20]} Bxe4 {[%emt 0:02:05]} 32. Qd7+ {[%emt 0:00:35]} Kb7 {[%emt 0:00:39]} 33. Rd6 {[%emt 0:00:30]} Bc6 {[%emt 0:00:14]} 0-1

[Event "ESTCC-50 2025"]
[Site "Swidnica"]
[Date "2025.04.10"]
[Round "6.2"]
[White "Ograbek, Grzegorz"]
[Black "Machlowski, Slawomir"]
[Result "1/2-1/2"]
[Annotator "ChessBase"]
[ECO "A40"]
[WhiteElo "2068"]
[BlackElo "1963"]
[PlyCount "88"]
[EventDate "2025.04.05"]
[EventType "team-tourn"]
[EventCountry "POL"]
[SourceTitle "playchess.com"]
[Source "ChessBase"]
[SourceQuality "1"]
[WhiteTeam "Poland"]
[BlackTeam "Czech Republic"]
[WhiteTeamCountry "POL"]
[BlackTeamCountry "CZE"]
[TimeControl "40/5400+30:1800+30"]

1. d4 {[%emt 0:00:04]} e6 {[%emt 0:00:06]} 2. c4 {[%emt 0:00:16]} b6 {[%emt 0:00:15]} 3. a3 {[%emt 0:01:15]} Bb7 {[%emt 0:00:33]} 4. Nc3 {[%emt 0:00:09]} f5 {[%emt 0:01:45]} 5. d5 {[%emt 0:00:31]} Nf6 {[%emt 0:00:28]} 6. g3 {[%emt 0:00:16]} Na6 {[%emt 0:01:11]} 7. Bg2 {[%emt 0:00:25]} Nc5 {[%emt 0:01:11]} 8. b4 {[%emt 0:33:07]} Nce4 {[%emt 0:00:47]} 9. Nxe4 {[%emt 0:00:05]} fxe4 {[%emt 0:01:26]} 10. dxe6 {[%emt 0:00:29]} d5 {[%emt 0:03:40]} 11. cxd5 {[%emt 0:07:28]} Qxd5 {[%emt 0:00:25]} 12. Qxd5 {[%emt 0:01:27]} Bxd5 {[%emt 0:00:24]} 13. Nh3 {[%emt 0:03:36]} Bxe6 {[%emt 0:03:01]} 14. Nf4 {[%emt 0:03:35]} Bf5 {[%emt 0:02:03]} 15. Bb2 {[%emt 0:06:31]} Bd6 {[%emt 0:01:39]} 16. O-O {[%emt 0:00:32]} O-O {[%emt 0:05:56]} 17. Rfd1 {[%emt 0:00:18]} a5 {[%emt 0:01:43]} 18. Nd5 {[%emt 0:08:38]} Nxd5 {[%emt 0:15:42]} 19. Rxd5 {[%emt 0:00:06]} axb4 {[%emt 0:00:45]} 20. Rxf5 {[%emt 0:00:09]} Rxf5 {[%emt 0:00:15]} 21. Bxe4 {[%emt 0:00:06]} Rfa5 {[%emt 0:00:12]} 22. Bxa8 {[%emt 0:02:15]} Rxa8 {[%emt 0:00:06]} 23. axb4 {[%emt 0:02:49]} Re8 {[%emt 0:00:39]} 24. Bc3 {[%emt 0:17:13]} Rxe2 {[%emt 0:00:44]} 25. Kg2 {[%emt 0:03:25]} Rc2 {[%emt 0:01:15]} 26. Be1 {[%emt 0:00:12]} Rb2 {[%emt 0:00:32]} 27. Rc1 {[%emt 0:00:15]} Kf7 {[%emt 0:01:07]} 28. Kf3 {[%emt 0:03:43]} Ke6 {[%emt 0:02:08]} 29. Rc4 {[%emt 0:02:58]} Rb3+ {[%emt 0:09:08]} 30. Ke2 {[%emt 0:01:40]} Kd5 {[%emt 0:03:21]} 31. Rg4 {[%emt 0:00:04]} Be5 {[%emt 0:01:20]} 32. Rg5 {[%emt 0:01:33]} Ke6 {[%emt 0:01:13]} 33. h4 {[%emt 0:00:44]} Bf6 {[%emt 0:04:23]} 34. Rg4 {[%emt 0:00:12]} Kd5 {[%emt 0:00:55]} 35. f3 {[%emt 0:00:22]} c5 {[%emt 0:12:37]} 36. bxc5 {[%emt 0:00:05]} Kxc5 {[%emt 0:00:16]} 37. Re4 {[%emt 0:00:52]} b5 {[%emt 0:07:40]} 38. g4 {[%emt 0:00:06]} h6 {[%emt 0:00:32]} 39. g5 {[%emt 0:00:06]} hxg5 {[%emt 0:00:55]} 40. hxg5 {[%emt 0:00:00]} Bd4 {[%emt 0:00:00]} 41. Bd2 {[%emt 0:01:38]} Rb2 {[%emt 0:09:07]} 42. Kd3 {[%emt 0:00:45]} Rb3+ {[%emt 0:00:52]} 43. Ke2 {[%emt 0:00:02]} Rb2 {[%emt 0:00:50]} 44. Kd3 {[%emt 0:00:02]} Rb3+ {[%emt 0:06:14]} 1/2-1/2

[Event "ESTCC-50 2025"]
[Site "Swidnica"]
[Date "2025.04.10"]
[Round "6.4"]
[White "Wielosz, Jaroslaw"]
[Black "Szydelko, Kazimierz"]
[Result "0-1"]
[Annotator "NA"]
[ECO "A14"]
[WhiteElo "1939"]
[BlackElo "1798"]
[PlyCount "112"]
[EventDate "2025.04.05"]
[EventType "team-tourn"]
[EventCountry "POL"]
[SourceTitle "playchess.com"]
[Source "ChessBase"]
[SourceQuality "1"]
[WhiteTeam "Poland"]
[BlackTeam "Poland"]
[WhiteTeamCountry "POL"]
[BlackTeamCountry "POL"]
[TimeControl "40/5400+30:1800+30"]

1. Nf3 {[%emt 0:00:09]} Nf6 {[%emt 0:00:20]} 2. c4 {[%emt 0:00:11]} c5 {[%emt 0:01:07]} 3. Nc3 {[%emt 0:00:15]} d5 {[%emt 0:03:40]} 4. cxd5 {[%emt 0:00:14]} Nxd5 {[%emt 0:00:11]} 5. g3 {[%emt 0:00:59]} Nc6 {[%emt 0:00:45]} 6. Bg2 {[%emt 0:00:14]} e6 {[%emt 0:00:48]} 7. O-O {[%emt 0:02:41]} Be7 {[%emt 0:00:03]} 8. d4 {[%emt 0:06:02]} Nxc3 {[%emt 0:04:37]} 9. bxc3 {[%emt 0:00:13]} O-O {[%emt 0:02:04]} 10. e4 {[%emt 0:01:52]} cxd4 {[%emt 0:03:38]} 11. cxd4 {[%emt 0:00:23]} Qa5 {[%emt 0:04:28]} 12. Be3 {[%emt 0:21:16]} Rd8 {[%emt 0:01:00]} 13. Qb3 {[%emt 0:03:07]} b6 {[%emt 0:05:33]} 14. Rfd1 {[%emt 0:02:27]} Bb7 {[%emt 0:01:01]} 15. d5 {[%emt 0:12:51]} exd5 {[%emt 0:09:52]} 16. exd5 {[%emt 0:00:11]} Nb4 {[%emt 0:14:45]} 17. d6 {[%emt 0:02:56]} Rxd6 {[%emt 0:04:30]} 18. Rxd6 {[%emt 0:05:24]} Bxd6 {[%emt 0:00:08]} 19. Ng5 {[%emt 0:04:59]} Bd5 {[%emt 0:03:14]} 20. Qb1 {[%emt 0:17:41]} g6 {[%emt 0:00:21]} 21. a3 {[%emt 0:03:14]} Nc6 {[%emt 0:04:59]} 22. Qd3 {[%emt 0:02:11]} Bxg2 {[%emt 0:02:03]} 23. Kxg2 {[%emt 0:03:01]} Rd8 {[%emt 0:03:40]} 24. Qb3 {[%emt 0:00:55]} Qf5 {[%emt 0:04:13]} 25. Rd1 {[%emt 0:02:31]} Ne5 {[%emt 0:01:20]} 26. Bf4 {[%emt 0:00:41]} Ng4 {[%emt 0:13:04]} 27. h3 {[%emt 0:02:01]} Nxf2 {[%emt 0:04:12]} 28. Kxf2 {[%emt 0:01:06]} Bc5+ {[%emt 0:00:54]} 29. Kg2 {[%emt 0:00:28]} Re8 {[%emt 0:01:10]} 30. Rd2 {[%emt 0:01:39]} h6 {[%emt 0:00:33]} 31. Nf3 {[%emt 0:01:02]} g5 {[%emt 0:00:05]} 32. Be5 {[%emt 0:00:56]} Rxe5 {[%emt 0:00:36]} 33. Nxe5 {[%emt 0:00:36]} Qxe5 {[%emt 0:00:02]} 34. Qf3 {[%emt 0:00:58]} Kg7 {[%emt 0:00:48]} 35. Re2 {[%emt 0:01:09]} Qa1 {[%emt 0:01:44]} 36. h4 {[%emt 0:00:58]} Qxa3 {[%emt 0:00:30]} 37. Qe4 {[%emt 0:00:42]} Qa1 {[%emt 0:00:23]} 38. hxg5 {[%emt 0:00:31]} hxg5 {[%emt 0:01:00]} 39. Re1 {[%emt 0:00:42]} Qd4 {[%emt 0:00:29]} 40. Qc2 {[%emt 0:00:00]} Qd5+ {[%emt 0:00:00]} 41. Kh2 {[%emt 0:02:41]} Qf3 {[%emt 0:05:22]} 42. Qb2+ {[%emt 0:03:40]} f6 {[%emt 0:00:39]} 43. Qd2 {[%emt 0:07:20]} Qf5 {[%emt 0:02:32]} 44. Qg2 {[%emt 0:02:19]} Qh7+ {[%emt 0:01:38]} 45. Qh3 {[%emt 0:00:08]} Qxh3+ {[%emt 0:00:14]} 46. Kxh3 {[%emt 0:00:07]} a5 {[%emt 0:00:18]} 47. Ra1 {[%emt 0:00:52]} Kf7 {[%emt 0:01:33]} 48. Kg4 {[%emt 0:00:29]} Ke6 {[%emt 0:00:37]} 49. Kf3 {[%emt 0:01:09]} Kd5 {[%emt 0:00:07]} 50. Ke2 {[%emt 0:00:28]} Bd4 {[%emt 0:00:20]} 51. Ra4 {[%emt 0:00:45]} Kc5 {[%emt 0:00:19]} 52. Kd3 {[%emt 0:00:21]} Be5 {[%emt 0:00:17]} 53. Rc4+ {[%emt 0:01:43]} Kb5 {[%emt 0:00:44]} 54. g4 {[%emt 0:00:08]} a4 {[%emt 0:00:25]} 55. Re4 {[%emt 0:01:17]} a3 {[%emt 0:00:37]} 56. Re2 {[%emt 0:01:30]} Kb4 {[%emt 0:00:24]} 0-1

[Event "ESTCC-50 2025"]
[Site "Swidnica"]
[Date "2025.04.10"]
[Round "6.5"]
[White "Buckley, Graeme N"]
[Black "Adams, Michael"]
[Result "1/2-1/2"]
[Annotator "TA"]
[ECO "C88"]
[WhiteElo "2268"]
[BlackElo "2661"]
[PlyCount "67"]
[EventDate "2025.04.05"]
[EventType "team-tourn"]
[EventCountry "POL"]
[SourceTitle "playchess.com"]
[Source "ChessBase"]
[SourceQuality "1"]
[WhiteTeam "England"]
[BlackTeam "England"]
[WhiteTeamCountry "ENG"]
[BlackTeamCountry "ENG"]
[TimeControl "40/5400+30:1800+30"]

{[%evp 16,67,45,16,36,14,17,16,20,0,5,-2,11,1,10,10,26,21,91,85,85,85,95,82,102,98,96,91,82,82,107,77,102,54,111,66,75,78,88,29,65,22,76,60,97,102,108,112,103,76,107,93,112,79]} 1. e4 {[%emt 0:00:02]} e5 {[%emt 0:00:07]} 2. Nf3 {[%emt 0:00:07]} Nc6 {[%emt 0:00:05]} 3. Bb5 {[%emt 0:00:10][%cal Bf1b5,Bb5a4,Ba4b3,Bb3a2][%mdl 32]} a6 {[%emt 0:00:07]} 4. Ba4 {[%emt 0:00:03]} Nf6 {[%emt 0:00:07]} 5. O-O {[%emt 0:00:07]} Be7 {[%emt 0:00:05]} 6. Re1 {[%emt 0:00:06]} b5 {[%emt 0:00:05]} 7. Bb3 {[%emt 0:00:03]} O-O {[%emt 0:00:09]} 8. a4 {[%emt 0:00:26]} Rb8 {[%emt 0:00:23]} 9. d3 {[%emt 0:09:14]} d6 {[%emt 0:00:38] C88: Closed Ruy Lopez: Anti-Marshall Systems.} 10. Nbd2 {[%emt 0:04:01][%cal Bb1d2,Bd2f1,Bf1e3][%mdl 32]} Na5 {[%emt 0:04:09]} 11. Ba2 {[%emt 0:00:12]} c5 {[%emt 0:00:15] The position is equal.} 12. c3 {[%emt 0:01:40]} Qc7 {[%emt 0:03:49]} 13. Nf1 {[%emt 0:03:30]} b4 {[%emt 0:08:41]} 14. Ne3 {[%emt 0:03:57]} b3 {[%emt 0:04:32]} 15. Bb1 {[%emt 0:00:05]} Be6 $146 {[%emt 0:05:07]} (15... Re8 16. Nd2 Be6 17. Ndc4 Bf8 18. Ra3 Nxc4 19. dxc4 Qb7 20. Qd3 g6 21. Nd5 Nxd5 22. cxd5 {½-½ Barbaric Vuk,T (2146)-Jakic,I (2319) Omis op 2004 (4)}) 16. d4 {[%emt 0:04:23][%cal Bd3d4,Bd4d5][%mdl 32]} Rbd8 {[%emt 0:09:40]} (16... c4 $11) 17. d5 $16 {[%emt 0:08:03]} Bd7 {[%emt 0:00:17]} 18. c4 {[%emt 0:00:14]} g6 {[%emt 0:00:44]} 19. Bd2 {[%emt 0:02:35]} Ng4 {[%emt 0:04:24]} 20. Bd3 {[%emt 0:10:20]} Nxe3 {[%emt 0:07:28]} 21. Bxe3 {[%emt 0:06:10]} Rb8 {[%emt 0:01:46]} 22. Bh6 {[%emt 0:00:42]} Rfe8 {[%emt 0:02:49]} 23. h3 {[%emt 0:00:17]} Qd8 {[%emt 0:04:00]} 24. Qc1 {[%emt 0:01:31]} (24. Bd2 $16) 24... Bf6 {[%emt 0:02:20]} (24... f5 $14) 25. Ra3 {[%emt 0:02:28]} Bg7 {[%emt 0:00:54]} 26. Bd2 {[%emt 0:01:26]} f5 {[%emt 0:02:33]} 27. Rf1 {[%emt 0:04:12]} ({Better is} 27. Re2 $16) 27... Rb4 $11 {[%emt 0:13:58][%cal Of5e4]} 28. Qe1 {[%emt 0:00:30]} (28. Ng5 $5) 28... Qb6 {[%emt 0:01:38]} 29. Ng5 {[%emt 0:18:19]} f4 {[%emt 0:08:27]} 30. Be2 {[%emt 0:07:09] White is better.} Bf6 {[#]} 31. Nf3 {[%emt 0:00:10]} Rb8 {[%emt 0:03:54][%cal Oa5c4]} 32. Qc1 {[%emt 0:03:20]} h5 {[%emt 0:01:46]} 33. Ne1 {[%emt 0:02:06]} Bd8 {[%emt 0:02:22]} 34. Bxb4 {[%emt 0:07:26] Weighted Error Value: White=0.16 (very precise) /Black=0.19 (very precise)   Mistake:       	White=2     	Black=3      Inaccurate:     	White=2     	Black=2      OK:         	White=7     	Black=8      Best:        	White=2     	---} 1/2-1/2

[Event "ESTCC-50 2025"]
[Site "Swidnica"]
[Date "2025.04.10"]
[Round "6.6"]
[White "Emms, John M"]
[Black "Dickenson, Neil F"]
[Result "1-0"]
[Annotator "RC"]
[ECO "C08"]
[WhiteElo "2411"]
[BlackElo "2250"]
[PlyCount "107"]
[EventDate "2025.04.05"]
[EventType "team-tourn"]
[EventCountry "POL"]
[SourceTitle "playchess.com"]
[Source "ChessBase"]
[SourceQuality "1"]
[WhiteTeam "England"]
[BlackTeam "England"]
[WhiteTeamCountry "ENG"]
[BlackTeamCountry "ENG"]
[TimeControl "40/5400+30:1800+30"]

1. e4 {[%emt 0:00:16]} e6 {[%emt 0:00:03]} 2. d4 {[%emt 0:00:07]} d5 {[%emt 0:00:04]} 3. Nd2 {[%emt 0:00:19]} c5 {[%emt 0:00:06]} 4. exd5 {[%emt 0:00:21]} exd5 {[%emt 0:00:05]} 5. Bb5+ {[%emt 0:00:37]} Nc6 {[%emt 0:00:06]} 6. Ngf3 {[%emt 0:00:40]} Qe7+ {[%emt 0:00:09]} 7. Be2 {[%emt 0:01:16]} Qc7 {[%emt 0:00:19]} 8. O-O {[%emt 0:00:48]} Nf6 {[%emt 0:00:07]} 9. Re1 {[%emt 0:01:23]} cxd4 {[%emt 0:00:22]} 10. Nb3 {[%emt 0:00:23]} Bb4 {[%emt 0:02:04]} 11. Bd2 {[%emt 0:00:46]} Bxd2 {[%emt 0:00:10]} 12. Qxd2 {[%emt 0:00:17]} O-O {[%emt 0:00:18]} 13. Nfxd4 {[%emt 0:01:00]} Re8 {[%emt 0:04:32]} 14. Bd3 {[%emt 0:29:02]} Bd7 {[%emt 0:04:19]} 15. h3 {[%emt 0:08:39]} Qb6 {[%emt 0:05:47]} 16. Nxc6 {[%emt 0:11:05]} Bxc6 {[%emt 0:01:38]} 17. c3 {[%emt 0:02:59]} Ne4 {[%emt 0:18:29]} 18. Qe3 {[%emt 0:09:23]} Qc7 {[%emt 0:01:33]} 19. Qd4 {[%emt 0:04:28]} b6 {[%emt 0:01:45]} 20. Re2 {[%emt 0:04:39]} Nf6 {[%emt 0:00:51]} 21. Rae1 {[%emt 0:01:08]} Rxe2 {[%emt 0:00:21]} 22. Rxe2 {[%emt 0:00:08]} Re8 {[%emt 0:00:33]} 23. Rxe8+ {[%emt 0:00:39]} Bxe8 {[%emt 0:00:08]} 24. Qe3 {[%emt 0:00:37]} Kf8 {[%emt 0:01:25]} 25. Nd4 {[%emt 0:01:19]} Bd7 {[%emt 0:02:10]} 26. g4 {[%emt 0:02:57]} h6 {[%emt 0:00:43]} 27. Kg2 {[%emt 0:01:19]} Qd6 {[%emt 0:02:02]} 28. f4 {[%emt 0:01:51]} Qe7 {[%emt 0:01:36]} 29. Kf3 {[%emt 0:04:01]} Qxe3+ {[%emt 0:00:32]} 30. Kxe3 {[%emt 0:00:02]} Ke7 {[%emt 0:00:55]} 31. Bb5 {[%emt 0:04:37]} g6 {[%emt 0:03:19]} 32. Bf1 {[%emt 0:01:38]} Kd6 {[%emt 0:01:03]} 33. Bg2 {[%emt 0:01:09]} Ne8 {[%emt 0:01:19]} 34. g5 {[%emt 0:02:01]} hxg5 {[%emt 0:01:49]} 35. fxg5 {[%emt 0:00:02]} Ng7 {[%emt 0:00:53]} 36. h4 {[%emt 0:00:54]} Ke5 {[%emt 0:02:22]} 37. Nf3+ {[%emt 0:01:03]} Kd6 {[%emt 0:00:11]} 38. Nd4 {[%emt 0:01:01]} Ke5 {[%emt 0:00:08]} 39. Nf3+ {[%emt 0:00:21]} Kd6 {[%emt 0:00:08]} 40. Bf1 {[%emt 0:00:00]} a5 {[%emt 0:00:00]} 41. Nd4 {[%emt 0:06:27]} Ke5 {[%emt 0:07:47]} 42. Bd3 {[%emt 0:02:11]} Kd6 {[%emt 0:01:25]} 43. b4 {[%emt 0:01:48]} Ke5 {[%emt 0:03:34]} 44. a3 {[%emt 0:02:34]} axb4 {[%emt 0:00:16]} 45. cxb4 {[%emt 0:04:18]} Be8 {[%emt 0:09:00]} 46. Bc2 {[%emt 0:02:27]} f5 {[%emt 0:05:24]} 47. gxf6 {[%emt 0:04:28]} Kxf6 {[%emt 0:00:06]} 48. a4 {[%emt 0:00:30]} Ke5 {[%emt 0:03:02]} 49. a5 {[%emt 0:03:22]} bxa5 {[%emt 0:00:06]} 50. bxa5 {[%emt 0:00:02]} Kd6 {[%emt 0:01:17]} 51. Kf4 {[%emt 0:02:03]} Kc5 {[%emt 0:00:55]} 52. Ke5 {[%emt 0:00:43]} Nh5 {[%emt 0:01:49]} 53. Ne6+ {[%emt 0:02:51]} Kc6 {[%emt 0:00:39]} 54. Ba4+ {[%emt 0:00:23]} 1-0

[Event "ESTCC-50 2025"]
[Site "Swidnica"]
[Date "2025.04.10"]
[Round "6.7"]
[White "Duncan, Chris R"]
[Black "Flear, Glenn C"]
[Result "1/2-1/2"]
[Annotator "RC"]
[ECO "C45"]
[WhiteElo "2178"]
[BlackElo "2366"]
[PlyCount "29"]
[EventDate "2025.04.05"]
[EventType "team-tourn"]
[EventCountry "POL"]
[SourceTitle "playchess.com"]
[Source "ChessBase"]
[SourceQuality "1"]
[WhiteTeam "England"]
[BlackTeam "England"]
[WhiteTeamCountry "ENG"]
[BlackTeamCountry "ENG"]
[TimeControl "40/5400+30:1800+30"]

1. e4 {[%emt 0:00:05]} e5 {[%emt 0:00:16]} 2. Nf3 {[%emt 0:00:06]} Nc6 {[%emt 0:00:06]} 3. d4 {[%emt 0:00:03]} exd4 {[%emt 0:00:14]} 4. Nxd4 {[%emt 0:00:06]} Bc5 {[%emt 0:01:13]} 5. Nb3 {[%emt 0:00:09]} Bb6 {[%emt 0:00:10]} 6. Nc3 {[%emt 0:00:10]} Nf6 {[%emt 0:01:41]} 7. Qe2 {[%emt 0:00:47]} d6 {[%emt 0:01:08]} 8. Be3 {[%emt 0:00:39]} Be6 {[%emt 0:04:03]} 9. g3 {[%emt 0:09:49]} O-O {[%emt 0:09:39]} 10. Bg2 {[%emt 0:00:35]} Re8 {[%emt 0:02:05]} 11. O-O {[%emt 0:13:33]} Bxe3 {[%emt 0:09:00]} 12. Qxe3 {[%emt 0:00:07]} d5 {[%emt 0:00:56]} 13. Rad1 {[%emt 0:14:24]} Qc8 {[%emt 0:01:02]} 14. Qf4 {[%emt 0:08:44]} dxe4 {[%emt 0:08:19]} 15. Nxe4 {[%emt 0:00:27]} 1/2-1/2

[Event "ESTCC-50 2025"]
[Site "Swidnica"]
[Date "2025.04.10"]
[Round "6.8"]
[White "Dishman, Stephen"]
[Black "Crocker, Philip J"]
[Result "1/2-1/2"]
[Annotator "ChessBase"]
[ECO "A48"]
[WhiteElo "2279"]
[BlackElo "2137"]
[PlyCount "39"]
[EventDate "2025.04.05"]
[EventType "team-tourn"]
[EventCountry "POL"]
[SourceTitle "playchess.com"]
[Source "ChessBase"]
[SourceQuality "1"]
[WhiteTeam "England"]
[BlackTeam "England"]
[WhiteTeamCountry "ENG"]
[BlackTeamCountry "ENG"]
[TimeControl "40/5400+30:1800+30"]

1. d4 {[%emt 0:00:10]} Nf6 {[%emt 0:00:11]} 2. Nf3 {[%emt 0:01:31]} g6 {[%emt 0:00:35]} 3. Bg5 {[%emt 0:01:14]} Bg7 {[%emt 0:00:27]} 4. Nbd2 {[%emt 0:00:12]} O-O {[%emt 0:00:26]} 5. c3 {[%emt 0:00:28]} d6 {[%emt 0:01:17]} 6. e4 {[%emt 0:00:19]} h6 {[%emt 0:01:32]} 7. Bh4 {[%emt 0:00:52]} c5 {[%emt 0:01:05]} 8. dxc5 {[%emt 0:01:05]} dxc5 {[%emt 0:00:15]} 9. Be2 {[%emt 0:01:30]} Nc6 {[%emt 0:02:05]} 10. O-O {[%emt 0:00:10]} Nh5 {[%emt 0:01:38]} 11. Re1 {[%emt 0:01:05]} b6 {[%emt 0:08:56]} 12. Bf1 {[%emt 0:00:34]} Qc7 {[%emt 0:03:08]} 13. Qc2 {[%emt 0:00:46]} Bb7 {[%emt 0:01:29]} 14. Rad1 {[%emt 0:02:26]} Rad8 {[%emt 0:04:05]} 15. Nc4 {[%emt 0:01:22]} Rxd1 {[%emt 0:03:38]} 16. Rxd1 {[%emt 0:00:21]} Rd8 {[%emt 0:02:22]} 17. Re1 {[%emt 0:03:26]} g5 {[%emt 0:09:58]} 18. Bg3 {[%emt 0:00:19]} Nxg3 {[%emt 0:00:50]} 19. hxg3 {[%emt 0:00:08]} Ba6 {[%emt 0:03:59]} 20. Rd1 {[%emt 0:15:47]} 1/2-1/2

[Event "ESTCC-50 2025"]
[Site "Swidnica"]
[Date "2025.04.10"]
[Round "6.9"]
[White "Zeidler, Sven P."]
[Black "Zych, Marek"]
[Result "1/2-1/2"]
[Annotator "ChessBase"]
[ECO "B23"]
[WhiteElo "2143"]
[BlackElo "1942"]
[PlyCount "129"]
[EventDate "2025.04.05"]
[EventType "team-tourn"]
[EventCountry "POL"]
[SourceTitle "playchess.com"]
[Source "ChessBase"]
[SourceQuality "1"]
[WhiteTeam "Wales"]
[BlackTeam "Poland"]
[WhiteTeamCountry "WLS"]
[BlackTeamCountry "POL"]
[TimeControl "40/5400+30:1800+30"]

1. e4 {[%emt 0:00:03]} c5 {[%emt 0:00:12]} 2. Nc3 {[%emt 0:00:05]} Nc6 {[%emt 0:00:20]} 3. f4 {[%emt 0:00:07]} g6 {[%emt 0:00:26]} 4. Nf3 {[%emt 0:00:07]} Bg7 {[%emt 0:00:26]} 5. Bb5 {[%emt 0:00:07]} Nd4 {[%emt 0:00:42]} 6. O-O {[%emt 0:00:15]} a6 {[%emt 0:00:54]} 7. Bd3 {[%emt 0:00:31]} e6 {[%emt 0:01:11]} 8. e5 {[%emt 0:03:21]} d5 {[%emt 0:03:00]} 9. Nxd4 {[%emt 0:05:56]} cxd4 {[%emt 0:02:04]} 10. Ne2 {[%emt 0:00:07]} Qb6 {[%emt 0:15:27]} 11. Qe1 {[%emt 0:00:00]} Ne7 {[%emt 0:01:26]} 12. Qf2 {[%emt 0:04:52]} f6 {[%emt 0:02:46]} 13. Qxd4 {[%emt 0:09:50]} Qxd4+ {[%emt 0:00:43]} 14. Nxd4 {[%emt 0:00:05]} fxe5 {[%emt 0:00:38]} 15. fxe5 {[%emt 0:00:08]} Bxe5 {[%emt 0:00:55]} 16. Nb3 {[%emt 0:02:39]} Nc6 {[%emt 0:02:11]} 17. c3 {[%emt 0:00:42]} Rf8 {[%emt 0:02:08]} 18. Re1 {[%emt 0:02:25]} Bd7 {[%emt 0:05:30]} 19. Bc2 {[%emt 0:02:36]} O-O-O {[%emt 0:00:30]} 20. d4 {[%emt 0:15:14]} Bg7 {[%emt 0:00:40]} 21. Nc5 {[%emt 0:11:14]} Rde8 {[%emt 0:02:07]} 22. Nd3 {[%emt 0:06:52]} e5 {[%emt 0:02:42]} 23. Nxe5 {[%emt 0:01:57]} Nxe5 {[%emt 0:01:36]} 24. dxe5 {[%emt 0:00:07]} Rxe5 {[%emt 0:00:28]} 25. Rxe5 {[%emt 0:01:05]} Bxe5 {[%emt 0:00:27]} 26. Be3 {[%emt 0:00:19]} Re8 {[%emt 0:05:09]} 27. Bf2 {[%emt 0:04:16]} Bf4 {[%emt 0:05:13]} 28. Bd3 {[%emt 0:03:45]} Bc6 {[%emt 0:04:30]} 29. Re1 {[%emt 0:07:25]} Rxe1+ {[%emt 0:01:02]} 30. Bxe1 {[%emt 0:00:05]} Kd7 {[%emt 0:02:18]} 31. Bf2 {[%emt 0:01:17]} Kd6 {[%emt 0:05:58]} 32. Bd4 {[%emt 0:01:54]} Bc1 {[%emt 0:04:34]} 33. b3 {[%emt 0:01:17]} Bg5 {[%emt 0:09:10]} 34. h3 {[%emt 0:03:41]} Bd7 {[%emt 0:02:45]} 35. g4 {[%emt 0:01:02]} Be6 {[%emt 0:02:39]} 36. Kg2 {[%emt 0:01:05]} Bh4 {[%emt 0:00:35]} 37. Kf3 {[%emt 0:00:52]} Bg5 {[%emt 0:01:04]} 38. Kg3 {[%emt 0:03:10]} Bd7 {[%emt 0:04:36]} 39. h4 {[%emt 0:04:58]} Bc1 {[%emt 0:00:26]} 40. Bg7 {[%emt 0:00:00]} Be8 {[%emt 0:00:00]} 41. Be2 {[%emt 0:08:01]} Bf7 {[%emt 0:02:26]} 42. Bf3 {[%emt 0:00:33]} Bd2 {[%emt 0:00:52]} 43. Kf2 {[%emt 0:01:06]} Bf4 {[%emt 0:01:43]} 44. Bd4 {[%emt 0:04:11]} h6 {[%emt 0:03:28]} 45. Ke2 {[%emt 0:01:33]} Bg3 {[%emt 0:01:05]} 46. h5 {[%emt 0:00:38]} gxh5 {[%emt 0:00:23]} 47. gxh5 {[%emt 0:00:11]} Bf4 {[%emt 0:00:13]} 48. Bb6 {[%emt 0:03:05]} Be6 {[%emt 0:00:31]} 49. Ba7 {[%emt 0:01:39]} Ke5 {[%emt 0:01:37]} 50. a4 {[%emt 0:01:31]} Kf5 {[%emt 0:01:08]} 51. Kd3 {[%emt 0:00:48]} Be5 {[%emt 0:00:21]} 52. Be3 {[%emt 0:02:19]} Bf4 {[%emt 0:00:39]} 53. Bb6 {[%emt 0:00:40]} Be5 {[%emt 0:00:16]} 54. c4 {[%emt 0:01:04]} dxc4+ {[%emt 0:00:12]} 55. bxc4 {[%emt 0:00:07]} Bc8 {[%emt 0:00:33]} 56. Be3 {[%emt 0:01:31]} Bf4 {[%emt 0:01:18]} 57. Be4+ {[%emt 0:00:18]} Ke5 {[%emt 0:00:06]} 58. Bxf4+ {[%emt 0:01:02]} Kxf4 {[%emt 0:00:02]} 59. a5 {[%emt 0:00:21]} Ke5 {[%emt 0:00:36]} 60. Ke3 {[%emt 0:00:29]} Be6 {[%emt 0:01:11]} 61. Bd3 {[%emt 0:02:47]} Bd7 {[%emt 0:01:30]} 62. Bg6 {[%emt 0:02:44]} Bc6 {[%emt 0:00:26]} 63. Bf7 {[%emt 0:01:11]} Be4 {[%emt 0:02:29]} 64. Bg8 {[%emt 0:01:28]} Bc6 {[%emt 0:00:37]} 65. Bf7 {[%emt 0:00:25]} 1/2-1/2